[Event "*** Titled Tuesday Blitz"]
[Site "Chess.com"]
[Date "2020.05.19"]
[Round "8"]
[White "CuattroPrincesses"]
[Black "Azoulas1"]
[Result "1-0"]
[WhiteElo "2248"]
[BlackElo "1965"]
[TimeControl "180+1"]
[EndTime "13:38:03 PDT"]
[Termination "CuattroPrincesses won on time"]

1. e4 {[%clk 0:03:00.9]} 1... c5 {[%clk 0:02:57.6]} 2. Nf3 {[%clk 0:03:00.8]}
2... e6 {[%clk 0:02:54.1]} 3. d4 {[%clk 0:03:01]} 3... cxd4 {[%clk 0:02:54.3]}
4. Nxd4 {[%clk 0:03:01.9]} 4... Nf6 {[%clk 0:02:54.1]} 5. Nc3 {[%clk 0:03:01.6]}
5... Bb4 {[%clk 0:02:54.1]} 6. e5 {[%clk 0:03:00.3]} 6... Nd5 {[%clk 0:02:53.8]}
7. Bd2 {[%clk 0:03:00.7]} 7... Nxc3 {[%clk 0:02:52.4]} 8. bxc3 {[%clk
0:03:01.6]} 8... Be7 {[%clk 0:02:52.2]} 9. Qg4 {[%clk 0:03:01.2]} 9... O-O
{[%clk 0:02:51.8]} 10. Bd3 {[%clk 0:02:57.7]} 10... Nc6 {[%clk 0:02:47.7]} 11.
Nxc6 {[%clk 0:02:55.8]} 11... bxc6 {[%clk 0:02:41.8]} 12. Bh6 {[%clk 0:02:48.6]}
12... g6 {[%clk 0:02:40.8]} 13. Bxf8 {[%clk 0:02:43.4]} 13... Bxf8 {[%clk
0:02:39.4]} 14. O-O {[%clk 0:02:41.9]} 14... Qa5 {[%clk 0:02:38]} 15. Qd4 {[%clk
0:02:30.2]} 15... Bg7 {[%clk 0:02:35.6]} 16. f4 {[%clk 0:02:28.1]} 16... Bb7
{[%clk 0:02:29.7]} 17. Rab1 {[%clk 0:02:26.3]} 17... c5 {[%clk 0:02:28]} 18. Qc4
{[%clk 0:02:18.3]} 18... Bd5 {[%clk 0:02:23.9]} 19. Qb5 {[%clk 0:01:57.5]} 19...
Qxc3 {[%clk 0:02:21]} 20. Kh1 {[%clk 0:01:20.3]} 20... c4 {[%clk 0:02:15.4]} 21.
Be2 {[%clk 0:01:15.9]} 21... Qxc2 {[%clk 0:02:15]} 22. Bf3 {[%clk 0:01:14.7]}
22... Bxf3 {[%clk 0:02:12.4]} 23. Rxf3 {[%clk 0:01:13.4]} 23... Qxa2 {[%clk
0:01:49.8]} 24. Rd1 {[%clk 0:01:04.6]} 24... Qc2 {[%clk 0:01:23.1]} 25. Qxd7
{[%clk 0:00:52]} 25... c3 {[%clk 0:01:15.5]} 26. Qd3 {[%clk 0:00:44.4]} 26...
Qxd3 {[%clk 0:01:12.9]} 27. Rfxd3 {[%clk 0:00:45.3]} 27... Rc8 {[%clk
0:01:12.1]} 28. Rd8+ {[%clk 0:00:43.6]} 28... Rxd8 {[%clk 0:01:09.9]} 29. Rxd8+
{[%clk 0:00:44.5]} 29... Bf8 {[%clk 0:01:08.7]} 30. Rc8 {[%clk 0:00:45.1]} 30...
a5 {[%clk 0:01:06.3]} 31. Rxc3 {[%clk 0:00:43.3]} 31... a4 {[%clk 0:01:05.9]}
32. Rc7 {[%clk 0:00:39.5]} 32... a3 {[%clk 0:01:04.4]} 33. Ra7 {[%clk
0:00:39.2]} 33... h5 {[%clk 0:01:02.1]} 34. h4 {[%clk 0:00:35.1]} 34... Kg7
{[%clk 0:00:56.6]} 35. g3 {[%clk 0:00:35.3]} 35... Bc5 {[%clk 0:00:55.3]} 36.
Ra6 {[%clk 0:00:30.8]} 36... Bf8 {[%clk 0:00:46.4]} 37. Kg2 {[%clk 0:00:30.6]}
37... Kg8 {[%clk 0:00:42.2]} 38. Kf3 {[%clk 0:00:29.9]} 38... Kg7 {[%clk
0:00:39.5]} 39. Ke4 {[%clk 0:00:29.8]} 39... Bc5 {[%clk 0:00:34.7]} 40. Kf3
{[%clk 0:00:28.4]} 40... Bf8 {[%clk 0:00:32.8]} 41. Ra5 {[%clk 0:00:25.8]} 41...
Bb4 {[%clk 0:00:29.9]} 42. Ra4 {[%clk 0:00:25.8]} 42... Bf8 {[%clk 0:00:28.9]}
43. Ke4 {[%clk 0:00:24.1]} 43... Bc5 {[%clk 0:00:26.3]} 44. Ra6 {[%clk
0:00:20.5]} 44... Bf8 {[%clk 0:00:24.7]} 45. Kd4 {[%clk 0:00:19.7]} 45... Bb4
{[%clk 0:00:23.1]} 46. Kc4 {[%clk 0:00:18.5]} 46... Bf8 {[%clk 0:00:22.2]} 47.
Kb5 {[%clk 0:00:17.8]} 47... Kg8 {[%clk 0:00:20.2]} 48. Kc6 {[%clk 0:00:16.8]}
48... Kg7 {[%clk 0:00:19.9]} 49. Kd7 {[%clk 0:00:15.7]} 49... Bb4 {[%clk
0:00:19.1]} 50. Ra4 {[%clk 0:00:15]} 50... Bc5 {[%clk 0:00:18.2]} 51. Ke8 {[%clk
0:00:14.7]} 51... Kg8 {[%clk 0:00:12.1]} 52. Ra5 {[%clk 0:00:13]} 52... Bb4
{[%clk 0:00:11]} 53. Ra7 {[%clk 0:00:10.9]} 53... Bc5 {[%clk 0:00:09.9]} 54. Ra5
{[%clk 0:00:07.6]} 54... Bb4 {[%clk 0:00:09.3]} 55. Ra4 {[%clk 0:00:07.5]} 55...
Bc5 {[%clk 0:00:08.9]} 56. Kd7 {[%clk 0:00:07.6]} 56... Kg7 {[%clk 0:00:07.4]}
57. Kc6 {[%clk 0:00:08.5]} 57... Bf8 {[%clk 0:00:06.9]} 58. Ra7 {[%clk
0:00:07.6]} 58... Bb4 {[%clk 0:00:05]} 59. Kd7 {[%clk 0:00:07.6]} 59... Bc5
{[%clk 0:00:04.8]} 60. Ra6 {[%clk 0:00:06.9]} 60... Bb4 {[%clk 0:00:04.5]} 61.
Ke8 {[%clk 0:00:06.8]} 61... Bc5 {[%clk 0:00:03.9]} 62. Ra8 {[%clk 0:00:06.2]}
62... Kg8 {[%clk 0:00:03.2]} 63. Kd7+ {[%clk 0:00:05.1]} 63... Kg7 {[%clk
0:00:03]} 64. Ra6 {[%clk 0:00:05.4]} 64... Bf8 {[%clk 0:00:03.3]} 65. Kc6 {[%clk
0:00:03.7]} 65... Bb4 {[%clk 0:00:02.9]} 66. Ra7 {[%clk 0:00:03.8]} 66... Bf8
{[%clk 0:00:02]} 67. Kd7 {[%clk 0:00:04]} 67... Bc5 {[%clk 0:00:01.7]} 68. Ra4
{[%clk 0:00:03.9]} 68... Bf8 {[%clk 0:00:01]} 69. Ke8 {[%clk 0:00:04.3]} 1-0

[Event "*** Titled Tuesday Blitz"]
[Site "Chess.com"]
[Date "2020.05.19"]
[Round "8"]
[White "Savva09022009"]
[Black "Supernotar"]
[Result "0-1"]
[WhiteElo "2421"]
[BlackElo "2659"]
[TimeControl "180+1"]
[EndTime "13:38:10 PDT"]
[Termination "Supernotar won on time"]

1. d4 {[%clk 0:03:00.9]} 1... d5 {[%clk 0:03:00]} 2. Nc3 {[%clk 0:03:01.8]} 2...
Nf6 {[%clk 0:02:58.9]} 3. Bf4 {[%clk 0:03:01.1]} 3... a6 {[%clk 0:02:58.8]} 4.
e3 {[%clk 0:02:56.5]} 4... e6 {[%clk 0:02:59.1]} 5. Nf3 {[%clk 0:02:54]} 5... c5
{[%clk 0:02:59.4]} 6. Bd3 {[%clk 0:02:52.5]} 6... Nc6 {[%clk 0:02:59.6]} 7. dxc5
{[%clk 0:02:51.4]} 7... Bxc5 {[%clk 0:02:59.2]} 8. O-O {[%clk 0:02:52]} 8... O-O
{[%clk 0:02:57.5]} 9. e4 {[%clk 0:02:51.3]} 9... dxe4 {[%clk 0:02:53.9]} 10.
Nxe4 {[%clk 0:02:50.2]} 10... Be7 {[%clk 0:02:53.9]} 11. Qe2 {[%clk 0:02:47.5]}
11... Nd4 {[%clk 0:02:47.1]} 12. Nxd4 {[%clk 0:02:36.2]} 12... Qxd4 {[%clk
0:02:47]} 13. c3 {[%clk 0:02:35.1]} 13... Qd5 {[%clk 0:02:44.5]} 14. c4 {[%clk
0:02:26.8]} 14... Qc6 {[%clk 0:02:39.6]} 15. Nxf6+ {[%clk 0:02:21.1]} 15... Bxf6
{[%clk 0:02:39.4]} 16. Be4 {[%clk 0:02:21.9]} 16... Qb6 {[%clk 0:02:38.9]} 17.
Qc2 {[%clk 0:02:12.2]} 17... g6 {[%clk 0:02:33.6]} 18. Rab1 {[%clk 0:02:08.6]}
18... Bd7 {[%clk 0:02:32.9]} 19. Rfd1 {[%clk 0:02:07.8]} 19... Bc6 {[%clk
0:02:32.7]} 20. Rd6 {[%clk 0:02:07.5]} 20... Rfd8 {[%clk 0:02:27]} 21. c5 {[%clk
0:02:00.3]} 21... Qb5 {[%clk 0:02:15.7]} 22. Bxc6 {[%clk 0:01:59.7]} 22... bxc6
{[%clk 0:02:15]} 23. a4 {[%clk 0:01:35.2]} 23... Qb4 {[%clk 0:02:12.1]} 24. Bd2
{[%clk 0:01:33.2]} 24... Qb7 {[%clk 0:02:06.6]} 25. Rxd8+ {[%clk 0:01:24.3]}
25... Rxd8 {[%clk 0:02:06.1]} 26. Bc3 {[%clk 0:01:20.6]} 26... Bxc3 {[%clk
0:02:02.2]} 27. Qxc3 {[%clk 0:01:21.1]} 27... Rd5 {[%clk 0:02:01]} 28. b4 {[%clk
0:01:20.1]} 28... Qd7 {[%clk 0:01:51.3]} 29. Re1 {[%clk 0:00:58.4]} 29... Rd3
{[%clk 0:01:42.2]} 30. Qc4 {[%clk 0:00:55.7]} 30... Rd1 {[%clk 0:01:39.7]} 31.
Qe2 {[%clk 0:00:44.7]} 31... Rd2 {[%clk 0:01:29]} 32. Qxa6 {[%clk 0:00:41.7]}
32... Qd4 {[%clk 0:01:29]} 33. Rf1 {[%clk 0:00:38.1]} 33... Qxb4 {[%clk
0:01:27.3]} 34. Qxc6 {[%clk 0:00:37.1]} 34... Rc2 {[%clk 0:01:27.2]} 35. Qa8+
{[%clk 0:00:29.5]} 35... Kg7 {[%clk 0:01:26.6]} 36. c6 {[%clk 0:00:30]} 36...
Qc5 {[%clk 0:01:23.3]} 37. Qb7 {[%clk 0:00:30]} 37... e5 {[%clk 0:01:11.2]} 38.
Qd7 {[%clk 0:00:22.6]} 38... e4 {[%clk 0:00:53]} 39. Qe8 {[%clk 0:00:21.9]}
39... f5 {[%clk 0:00:48]} 40. Qd7+ {[%clk 0:00:20.8]} 40... Kh6 {[%clk
0:00:47.3]} 41. g3 {[%clk 0:00:19.8]} 41... e3 {[%clk 0:00:44.9]} 42. Qe6 {[%clk
0:00:18.3]} 42... exf2+ {[%clk 0:00:34.7]} 43. Kg2 {[%clk 0:00:17.8]} 43... Qd4
{[%clk 0:00:29.1]} 44. a5 {[%clk 0:00:16.5]} 44... f4 {[%clk 0:00:20.4]} 45. a6
{[%clk 0:00:14.8]} 45... fxg3 {[%clk 0:00:17]} 46. hxg3 {[%clk 0:00:14.4]} 46...
Qc5 {[%clk 0:00:11.8]} 47. Rh1+ {[%clk 0:00:14]} 47... Kg7 {[%clk 0:00:12.2]}
48. Qd7+ {[%clk 0:00:14.2]} 48... Kf6 {[%clk 0:00:12.5]} 49. Rf1 {[%clk
0:00:13.5]} 49... Kg5 {[%clk 0:00:10.7]} 50. Qd8+ {[%clk 0:00:12.5]} 50... Kg4
{[%clk 0:00:09.9]} 51. Qd7+ {[%clk 0:00:12.7]} 51... Kg5 {[%clk 0:00:09.9]} 52.
Qd8+ {[%clk 0:00:12.8]} 52... Kg4 {[%clk 0:00:09.1]} 53. Qh4+ {[%clk 0:00:13.2]}
53... Kf5 {[%clk 0:00:09]} 54. Qf4+ {[%clk 0:00:13.7]} 54... Ke6 {[%clk
0:00:09.5]} 55. Rxf2 {[%clk 0:00:11.9]} 55... Qxc6+ {[%clk 0:00:09.3]} 56. Kh2
{[%clk 0:00:10.9]} 56... Rxf2+ {[%clk 0:00:08.2]} 57. Qxf2 {[%clk 0:00:11.4]}
57... Qxa6 {[%clk 0:00:08.5]} 58. Qe3+ {[%clk 0:00:09.6]} 58... Kf7 {[%clk
0:00:08]} 59. Kg2 {[%clk 0:00:09.7]} 59... Qc6+ {[%clk 0:00:07.6]} 60. Qf3+
{[%clk 0:00:09.6]} 60... Qxf3+ {[%clk 0:00:07.2]} 61. Kxf3 {[%clk 0:00:10.3]}
61... Kf6 {[%clk 0:00:07.8]} 62. Kf4 {[%clk 0:00:10.6]} 62... h6 {[%clk
0:00:05.9]} 63. Ke4 {[%clk 0:00:09.7]} 63... Kg5 {[%clk 0:00:06]} 64. Kf3 {[%clk
0:00:09.7]} 64... Kf5 {[%clk 0:00:06.5]} 65. g4+ {[%clk 0:00:08.3]} 65... Ke5
{[%clk 0:00:05.9]} 66. Ke3 {[%clk 0:00:08.4]} 66... g5 {[%clk 0:00:05.9]} 67.
Kf3 {[%clk 0:00:06.8]} 67... Kd4 {[%clk 0:00:06.2]} 68. Kf2 {[%clk 0:00:07]}
68... Ke4 {[%clk 0:00:06.5]} 69. Kg3 {[%clk 0:00:07.6]} 69... Ke3 {[%clk
0:00:06.9]} 70. Kg2 {[%clk 0:00:08.5]} 70... Kf4 {[%clk 0:00:07.2]} 71. Kf2
{[%clk 0:00:09.4]} 71... Kxg4 {[%clk 0:00:07.4]} 0-1

[Event "*** Titled Tuesday Blitz"]
[Site "Chess.com"]
[Date "2020.05.19"]
[Round "8"]
[White "alenee"]
[Black "swayamsm"]
[Result "0-1"]
[WhiteElo "2418"]
[BlackElo "2642"]
[TimeControl "180+1"]
[EndTime "13:38:11 PDT"]
[Termination "swayamsm won on time"]

1. e4 {[%clk 0:03:00.9]} 1... e6 {[%clk 0:02:52.3]} 2. Nf3 {[%clk 0:03:00.3]}
2... d5 {[%clk 0:02:53.2]} 3. exd5 {[%clk 0:03:00.6]} 3... exd5 {[%clk
0:02:30.8]} 4. d4 {[%clk 0:03:01]} 4... Nf6 {[%clk 0:02:31.2]} 5. Bd3 {[%clk
0:03:00.8]} 5... Bd6 {[%clk 0:02:31.5]} 6. O-O {[%clk 0:03:01.2]} 6... O-O
{[%clk 0:02:31.7]} 7. Bg5 {[%clk 0:03:01.6]} 7... Bg4 {[%clk 0:02:32.1]} 8. Nbd2
{[%clk 0:03:01.6]} 8... Nbd7 {[%clk 0:02:32.3]} 9. c3 {[%clk 0:03:02.1]} 9... c6
{[%clk 0:02:32.7]} 10. Re1 {[%clk 0:03:02.3]} 10... Qc7 {[%clk 0:02:33]} 11. Qc2
{[%clk 0:03:02.7]} 11... Bh5 {[%clk 0:02:32]} 12. Bh4 {[%clk 0:02:53.3]} 12...
Rae8 {[%clk 0:02:29.5]} 13. Bg3 {[%clk 0:02:52]} 13... Bg6 {[%clk 0:02:29.2]}
14. b4 {[%clk 0:02:45.8]} 14... Nh5 {[%clk 0:02:20.7]} 15. a4 {[%clk 0:02:36.7]}
15... Nf4 {[%clk 0:02:19.3]} 16. Bxf4 {[%clk 0:02:33.4]} 16... Bxf4 {[%clk
0:02:20.2]} 17. g3 {[%clk 0:02:32]} 17... Bd6 {[%clk 0:02:16.2]} 18. a5 {[%clk
0:02:32]} 18... Nf6 {[%clk 0:02:14.9]} 19. Rxe8 {[%clk 0:02:22.4]} 19... Rxe8
{[%clk 0:02:14.5]} 20. Re1 {[%clk 0:02:23]} 20... Rxe1+ {[%clk 0:02:11.6]} 21.
Nxe1 {[%clk 0:02:22.8]} 21... Qe7 {[%clk 0:02:11.9]} 22. Nef3 {[%clk 0:02:01.7]}
22... Qe2 {[%clk 0:02:10]} 23. Bxe2 {[%clk 0:01:54.2]} 23... Bxc2 {[%clk
0:02:09.4]} 24. Ne1 {[%clk 0:01:44.2]} 24... Ba4 {[%clk 0:02:00.3]} 25. f3
{[%clk 0:01:41.7]} 25... b6 {[%clk 0:01:56.8]} 26. axb6 {[%clk 0:01:38.5]} 26...
axb6 {[%clk 0:01:57.7]} 27. Kf2 {[%clk 0:01:38.4]} 27... c5 {[%clk 0:01:57.8]}
28. dxc5 {[%clk 0:01:28.7]} 28... bxc5 {[%clk 0:01:58.7]} 29. Nd3 {[%clk
0:01:28.7]} 29... cxb4 {[%clk 0:01:50.2]} 30. cxb4 {[%clk 0:00:47.6]} 30... Bb5
{[%clk 0:01:49.9]} 31. Nc5 {[%clk 0:00:46.3]} 31... Bc6 {[%clk 0:01:41.3]} 32.
Ndb3 {[%clk 0:00:42.7]} 32... Nd7 {[%clk 0:01:37.1]} 33. Nxd7 {[%clk 0:00:29.5]}
33... Bxd7 {[%clk 0:01:38]} 34. Nc5 {[%clk 0:00:28.3]} 34... Bc6 {[%clk
0:01:32.5]} 35. Ke3 {[%clk 0:00:27.4]} 35... f6 {[%clk 0:01:32.8]} 36. f4 {[%clk
0:00:27.1]} 36... Kf7 {[%clk 0:01:24]} 37. Kd4 {[%clk 0:00:27.2]} 37... Ke7
{[%clk 0:01:15]} 38. Bf3 {[%clk 0:00:27.3]} 38... g5 {[%clk 0:01:07.8]} 39. fxg5
{[%clk 0:00:26.8]} 39... fxg5 {[%clk 0:01:08.7]} 40. Bxd5 {[%clk 0:00:26.9]}
40... Bb5 {[%clk 0:01:07]} 41. Be4 {[%clk 0:00:25]} 41... h5 {[%clk 0:01:06.7]}
42. Bf3 {[%clk 0:00:24.1]} 42... g4 {[%clk 0:01:04.8]} 43. Be4 {[%clk 0:00:24]}
43... h4 {[%clk 0:01:03]} 44. Bf5 {[%clk 0:00:22.7]} 44... Be2 {[%clk
0:00:54.9]} 45. Ne4 {[%clk 0:00:16.4]} 45... Bxb4 {[%clk 0:00:41.5]} 46. gxh4
{[%clk 0:00:16.5]} 46... Bf3 {[%clk 0:00:34.3]} 47. Ng3 {[%clk 0:00:15.8]} 47...
Kf6 {[%clk 0:00:30]} 48. Ke3 {[%clk 0:00:14.5]} 48... Bc5+ {[%clk 0:00:29.8]}
49. Kd2 {[%clk 0:00:11.7]} 49... Bg1 {[%clk 0:00:28.8]} 50. Bxg4 {[%clk
0:00:09.6]} 50... Bxg4 {[%clk 0:00:27.4]} 51. Nf1 {[%clk 0:00:06.7]} 51... Kg6
{[%clk 0:00:22.2]} 52. Ke1 {[%clk 0:00:05.9]} 52... Kh5 {[%clk 0:00:20.5]} 53.
Kd2 {[%clk 0:00:05.9]} 53... Kxh4 {[%clk 0:00:19]} 54. Ke1 {[%clk 0:00:06.6]}
54... Bh3 {[%clk 0:00:19.2]} 55. Ke2 {[%clk 0:00:05.4]} 55... Bg4+ {[%clk
0:00:19]} 56. Ke1 {[%clk 0:00:05.6]} 56... Bc8 {[%clk 0:00:19.5]} 57. Ke2 {[%clk
0:00:04.9]} 57... Ba6+ {[%clk 0:00:19.6]} 58. Ke1 {[%clk 0:00:04.7]} 58... Kh3
{[%clk 0:00:19.8]} 59. Ng3 {[%clk 0:00:01.6]} 59... Bxh2 {[%clk 0:00:16.1]} 60.
Ne2 {[%clk 0:00:02.2]} 60... Be5 {[%clk 0:00:15.5]} 61. Kf2 {[%clk 0:00:02.4]}
61... Kg4 {[%clk 0:00:15]} 62. Nc1 {[%clk 0:00:01.1]} 62... Bd4+ {[%clk
0:00:14.5]} 63. Kg2 {[%clk 0:00:01.2]} 63... Bb7+ {[%clk 0:00:13]} 64. Kf1
{[%clk 0:00:01.7]} 64... Kf3 {[%clk 0:00:12.8]} 65. Ke1 {[%clk 0:00:01.6]} 65...
Bc6 {[%clk 0:00:09.3]} 66. Kd1 {[%clk 0:00:01.7]} 66... Ba4+ {[%clk 0:00:08.9]}
67. Ke1 {[%clk 0:00:02]} 67... Bf2+ {[%clk 0:00:06.4]} 68. Kd2 {[%clk
0:00:01.7]} 68... Be3+ {[%clk 0:00:06.8]} 0-1

[Event "*** Titled Tuesday Blitz"]
[Site "Chess.com"]
[Date "2020.05.19"]
[Round "8"]
[White "PlayChessSimple"]
[Black "XDPS"]
[Result "1-0"]
[WhiteElo "2504"]
[BlackElo "2661"]
[TimeControl "180+1"]
[EndTime "13:38:12 PDT"]
[Termination "PlayChessSimple won on time"]

1. e4 {[%clk 0:03:00.9]} 1... c5 {[%clk 0:02:59.2]} 2. Nf3 {[%clk 0:03:00.3]}
2... d6 {[%clk 0:02:58.7]} 3. d4 {[%clk 0:03:00.4]} 3... cxd4 {[%clk 0:02:58.3]}
4. Nxd4 {[%clk 0:03:01]} 4... Nf6 {[%clk 0:02:58.1]} 5. Nc3 {[%clk 0:03:01.5]}
5... a6 {[%clk 0:02:57.7]} 6. g3 {[%clk 0:03:01.2]} 6... g6 {[%clk 0:02:44]} 7.
Bg2 {[%clk 0:03:01]} 7... Bg7 {[%clk 0:02:44.7]} 8. O-O {[%clk 0:03:01.5]} 8...
O-O {[%clk 0:02:45.2]} 9. h3 {[%clk 0:03:01.5]} 9... Nc6 {[%clk 0:02:44.5]} 10.
Nde2 {[%clk 0:03:01.4]} 10... Bd7 {[%clk 0:02:29.8]} 11. b3 {[%clk 0:03:00.9]}
11... Rc8 {[%clk 0:02:30]} 12. Bb2 {[%clk 0:03:01.3]} 12... Qa5 {[%clk
0:02:27.1]} 13. a4 {[%clk 0:02:46.7]} 13... Rfe8 {[%clk 0:02:24.7]} 14. Rb1
{[%clk 0:02:38.9]} 14... Nb4 {[%clk 0:02:22.2]} 15. Qd2 {[%clk 0:02:13.5]} 15...
Nc6 {[%clk 0:01:42.6]} 16. Rfd1 {[%clk 0:02:04.6]} 16... h5 {[%clk 0:01:25]} 17.
Nd5 {[%clk 0:01:49.7]} 17... Qxd2 {[%clk 0:01:19.5]} 18. Rxd2 {[%clk 0:01:46.7]}
18... Nxd5 {[%clk 0:01:13.9]} 19. Bxg7 {[%clk 0:01:41.2]} 19... Ne3 {[%clk
0:00:53.8]} 20. Bb2 {[%clk 0:01:39.2]} 20... Nxg2 {[%clk 0:00:53.7]} 21. Kxg2
{[%clk 0:01:39.3]} 21... Nb4 {[%clk 0:00:40.7]} 22. c4 {[%clk 0:01:30.4]} 22...
Nc6 {[%clk 0:00:35.4]} 23. Nf4 {[%clk 0:01:26.1]} 23... Be6 {[%clk 0:00:30.8]}
24. Nd5 {[%clk 0:01:21.5]} 24... Bxd5 {[%clk 0:00:30.9]} 25. exd5 {[%clk
0:01:21.7]} 25... Nb8 {[%clk 0:00:30.1]} 26. Re2 {[%clk 0:01:15.4]} 26... Nd7
{[%clk 0:00:29.7]} 27. Rbe1 {[%clk 0:01:15.5]} 27... Kf8 {[%clk 0:00:29.8]} 28.
g4 {[%clk 0:00:57.6]} 28... b5 {[%clk 0:00:18.5]} 29. cxb5 {[%clk 0:00:54.6]}
29... axb5 {[%clk 0:00:19.4]} 30. a5 {[%clk 0:00:54.9]} 30... b4 {[%clk
0:00:18.3]} 31. gxh5 {[%clk 0:00:54.4]} 31... gxh5 {[%clk 0:00:18.3]} 32. Re4
{[%clk 0:00:49.5]} 32... Rc5 {[%clk 0:00:18.6]} 33. a6 {[%clk 0:00:36.3]} 33...
Rxd5 {[%clk 0:00:17.8]} 34. Rxb4 {[%clk 0:00:35.8]} 34... Ra5 {[%clk 0:00:18.4]}
35. Rb7 {[%clk 0:00:34.2]} 35... Nc5 {[%clk 0:00:17.7]} 36. b4 {[%clk
0:00:22.2]} 36... Nxb7 {[%clk 0:00:16.9]} 37. bxa5 {[%clk 0:00:22.4]} 37... Nxa5
{[%clk 0:00:17.8]} 38. Ra1 {[%clk 0:00:19.7]} 38... Nc6 {[%clk 0:00:17.6]} 39.
Rc1 {[%clk 0:00:18.9]} 39... Na7 {[%clk 0:00:15.7]} 40. Bd4 {[%clk 0:00:17.3]}
40... Ra8 {[%clk 0:00:14.6]} 41. Be3 {[%clk 0:00:13.4]} 41... Nb5 {[%clk
0:00:14.4]} 42. a7 {[%clk 0:00:13.5]} 42... d5 {[%clk 0:00:14.6]} 43. Rb1 {[%clk
0:00:11.9]} 43... Nxa7 {[%clk 0:00:03.8]} 44. Ra1 {[%clk 0:00:11.7]} 44... Kg7
{[%clk 0:00:03.6]} 45. Bd4+ {[%clk 0:00:10.7]} 45... f6 {[%clk 0:00:03.7]} 46.
Rxa7 {[%clk 0:00:10]} 46... Re8 {[%clk 0:00:04.2]} 47. Kf3 {[%clk 0:00:08.6]}
47... Kf7 {[%clk 0:00:04.4]} 48. Bc5 {[%clk 0:00:08.2]} 48... Ke6 {[%clk
0:00:04.4]} 49. Kf4 {[%clk 0:00:07.8]} 49... Kf7 {[%clk 0:00:03.7]} 50. f3
{[%clk 0:00:07.8]} 50... Ke6 {[%clk 0:00:03.8]} 51. h4 {[%clk 0:00:08]} 51... d4
{[%clk 0:00:03.9]} 52. Bxd4 {[%clk 0:00:07.4]} 52... Kd5 {[%clk 0:00:04.2]} 53.
Bc3 {[%clk 0:00:05.8]} 53... e5+ {[%clk 0:00:04]} 54. Kf5 {[%clk 0:00:06]} 54...
Kc4 {[%clk 0:00:04.2]} 55. Ba5 {[%clk 0:00:05.1]} 55... e4 {[%clk 0:00:03.9]}
56. fxe4 {[%clk 0:00:04.7]} 56... Kd3 {[%clk 0:00:03.6]} 57. Kxf6 {[%clk
0:00:03.9]} 57... Kxe4 {[%clk 0:00:03.8]} 58. Re7+ {[%clk 0:00:02.9]} 58... Rxe7
{[%clk 0:00:04.3]} 59. Kxe7 {[%clk 0:00:03.2]} 59... Kf4 {[%clk 0:00:05.2]} 60.
Be1 {[%clk 0:00:03.2]} 60... Kf5 {[%clk 0:00:05.4]} 61. Kf7 {[%clk 0:00:03.2]}
61... Kg4 {[%clk 0:00:05.4]} 62. Kg6 {[%clk 0:00:03.2]} 62... Kf4 {[%clk
0:00:06.1]} 63. Kxh5 {[%clk 0:00:03.4]} 63... Kf5 {[%clk 0:00:07]} 64. Kh6
{[%clk 0:00:03.5]} 64... Kf6 {[%clk 0:00:07.9]} 65. h5 {[%clk 0:00:03.8]} 65...
Kf7 {[%clk 0:00:08.8]} 66. Kh7 {[%clk 0:00:03.8]} 66... Kf8 {[%clk 0:00:09.7]}
67. h6 {[%clk 0:00:04]} 67... Kf7 {[%clk 0:00:10.6]} 68. Bd2 {[%clk 0:00:04.1]}
68... Kf8 {[%clk 0:00:11.5]} 69. Bc1 {[%clk 0:00:04.4]} 69... Kf7 {[%clk
0:00:12.4]} 70. Bb2 {[%clk 0:00:04.8]} 70... Kf8 {[%clk 0:00:13.3]} 71. Kg6
{[%clk 0:00:05]} 71... Kg8 {[%clk 0:00:14.2]} 72. h7+ {[%clk 0:00:05.3]} 1-0